bitfinex/quotes_SOLUSD_20230904
["timestamp","ask_amount","ask_price","bid_price","bid_amount"]
[1693847633771,3.44461036,19.458,19.447,20.0]
[1693847633772,11.46161036,19.458,19.447,20.0]
[1693847634082,11.46161036,19.458,19.45,6.786]
[1693847637082,3.44461036,19.458,19.45,6.786]
[1693847637470,11.46161036,19.458,19.45,6.786]
[1693847638378,3.44461036,19.458,19.45,61.468]
[1693847638581,3.44461036,19.465,19.45,6.786]
[1693847638785,8.017,19.458,19.45,1.604]
[1693847638985,3.44461036,19.457,19.45,1.604]
[1693847640184,8.017,19.459,19.45,1.604]
[1693847640388,3.44461036,19.458,19.45,1.604]
[1693847641576,3.44461036,19.459,19.45,1.604]
[1693847641781,3.44461036,19.461,19.45,1.604]
[1693847641992,8.016,19.459,19.45,1.604]
[1693847642194,3.44461036,19.458,19.45,1.604]
[1693847644375,3.44461036,19.46,19.45,35.824]
[1693847644681,3.44461036,19.463,19.45,35.824]
[1693847644986,8.013,19.467,19.455,18.09]
[1693847645177,8.013,19.467,19.459,6.783]
[1693847645383,11.45761036,19.467,19.459,6.783]
[1693847645987,3.44461036,19.467,19.459,6.783]
[1693847646191,3.44461036,19.469,19.46,34.22]
[1693847646392,3.44461036,19.472,19.462,6.782]
[1693847646687,25.881,19.474,19.462,6.782]
[1693847646892,11.45561036,19.473,19.462,6.782]
[1693847647085,3.44461036,19.473,19.462,6.782]
[1693847647980,3.44461036,19.473,19.462,27.232]
[1693847648187,3.44461036,19.478,19.462,27.232]
[1693847648489,3.44461036,19.478,19.463,20.0]
[1693847648691,3.44461036,19.478,19.467,18.079]
[1693847648990,8.007,19.481,19.471,6.778]
[1693847649194,3.44461036,19.48,19.471,6.778]
[1693847649595,3.44461036,19.482,19.471,6.778]
[1693847649991,8.008,19.48,19.471,6.778]
[1693847650296,3.44461036,19.479,19.471,6.778]
[1693847650502,8.008,19.479,19.467,20.537495]
[1693847650688,3.44461036,19.478,19.471,1.602]
[1693847650882,3.44461036,19.479,19.471,1.602]
[1693847651192,3.44461036,19.478,19.471,1.602]
[1693847651391,3.44461036,19.478,19.468,5.177]
[1693847651586,8.009,19.477,19.471,1.602]
[1693847651781,3.44461036,19.476,19.471,1.602]
[1693847652097,3.44461036,19.477,19.471,1.602]
[1693847652291,8.007,19.481,19.471,1.602]
[1693847652495,3.44461036,19.48,19.471,1.602]
[1693847652695,3.44461036,19.487,19.471,104.87597438]
[1693847652879,8.005,19.487,19.471,104.87597438]
[1693847653284,3.44461036,19.486,19.471,104.87597438]
[1693847653889,3.44461036,19.491,19.477,38.505]
[1693847654088,3.44461036,19.496,19.477,38.505]
[1693847654287,3.44461036,19.494,19.483,1.601]
[1693847654597,67.87361036,19.494,19.481,1.601]
[1693847657007,11.44661036,19.494,19.481,1.601]
[1693847657195,3.44461036,19.494,19.481,1.601]
[1693847658284,3.44461036,19.495,19.481,1.601]
[1693847658685,25.849,19.498,19.481,21.601]
[1693847658686,11.44561036,19.498,19.481,21.601]
[1693847658901,11.44561036,19.498,19.481,47.35881734]
[1693847659504,3.44461036,19.498,19.481,47.35881734]
[1693847659699,3.44461036,19.498,19.482,25.75781734]
[1693847659904,3.44461036,19.498,19.486,18.062]
[1693847660398,3.44461036,19.5,19.487,20.0]
[1693847660601,59.84261036,19.504,19.49,18.058]
[1693847660791,8.0,19.5,19.49,1.6]
[1693847660991,3.44461036,19.499,19.49,1.6]
[1693847661187,8.0,19.498,19.49,1.6]
[1693847661392,7.5,19.498,19.49,1.6]
[1693847661595,3.44461036,19.497,19.49,1.6]
[1693847661887,8.001,19.496,19.49,1.6]
[1693847662405,8.0,19.498,19.49,1.6]
[1693847662588,1.15730832,19.497,19.49,1.6]
[1693847662787,9.15830832,19.497,19.49,1.6]
[1693847662988,8.001,19.497,19.49,1.6]
[1693847663303,152.2232,19.505,19.49,1.6]
[1693847663601,8.0,19.5,19.49,1.6]
[1693847663805,2.99053991,19.499,19.49,1.6]
[1693847664000,8.001,19.497,19.49,1.6]
[1693847664507,8.0,19.498,19.49,1.6]
[1693847664801,56.404,19.503,19.49,1.6]
[1693847664802,8.001,19.497,19.49,1.6]
[1693847665706,8.001,19.497,19.489,1.6]
[1693847670594,95.8272,19.505,19.489,12.888]
[1693847670800,2.48507633,19.504,19.49,33.93]
[1693847670993,95.8272,19.505,19.494,38.471]
[1693847671201,1.65547865,19.508,19.494,38.471]
[1693847671393,1.65547865,19.508,19.498,18.052]
[1693847671597,9.65147865,19.508,19.498,18.052]
[1693847671803,9.65147865,19.508,19.498,6.769]
[1693847672308,1.65547865,19.508,19.498,18.052]
[1693847672507,2.23869269,19.509,19.498,18.052]
[1693847672996,103.3212,19.511,19.498,18.052]
[1693847673196,1.15038748,19.51,19.498,18.052]
[1693847673510,1.15038748,19.51,19.5,67.86]
[1693847673708,25.815,19.524,19.503,89.964]
[1693847674005,11.43461036,19.523,19.509,18.041]
[1693847674193,11.43461036,19.523,19.509,6.765]
[1693847674510,11.43461036,19.523,19.509,1.599]
[1693847675199,11.43461036,19.523,19.509,22.09485]
[1693847675503,11.43461036,19.523,19.509,1.599]
[1693847675706,11.43461036,19.523,19.509,12.875]
[1693847675893,3.44461036,19.523,19.509,12.875]
[1693847676095,3.44461036,19.524,19.51,33.93]
[1693847676295,3.44461036,19.524,19.514,18.036]
[1693847676615,56.321,19.531,19.514,18.036]
[1693847676616,3.44461036,19.53,19.514,38.431]
[1693847676804,3.44461036,19.53,19.515,20.0]
[1693847677110,3.44461036,19.53,19.519,18.032]
[1693847677309,3.44461036,19.53,19.519,6.762]
[1693847677609,33.793,19.53,19.52,1.598]
[1693847677804,1.10989838,19.529,19.52,1.598]
[1693847678111,7.989,19.527,19.52,1.598]
[1693847678699,7.989,19.527,19.517,5.164]
[1693847678903,7.989,19.527,19.518,1.598]
[1693847680015,101.86,19.537,19.518,1.598]
[1693847680307,393.82,19.56,19.52,56.26]
[1693847680308,1.48271046,19.536,19.52,56.26]
[1693847680609,1.48271046,19.536,19.524,18.026]
[1693847680610,7.985,19.536,19.524,18.026]
[1693847680805,2.55513133,19.535,19.525,55.0]
[1693847681005,7.985,19.535,19.528,1.597]
[1693847681206,25.794,19.539,19.528,1.597]
[1693847681516,98.0019,19.54,19.53,56.26]
[1693847681812,98.0019,19.54,19.533,1.597]
[1693847681813,105.9849,19.54,19.533,1.597]
[1693847682006,33.776,19.54,19.527,80.161]
[1693847682196,33.776,19.54,19.528,5.161]
[1693847682197,1.41383549,19.539,19.528,5.161]
[1693847682398,7.984,19.537,19.531,1.597]
[1693847682710,7.984,19.537,19.522,20.386]
[1693847682711,1.41383549,19.536,19.527,1.597]
[1693847682910,7.986,19.534,19.527,1.597]
[1693847683219,7.986,19.534,19.521,55.0]
[1693847683403,7.986,19.534,19.521,1.598]
[1693847683602,1.64666212,19.533,19.521,1.598]
[1693847683802,7.987,19.53,19.521,1.598]
[1693847684916,7.987,19.53,19.51,41.19262294]
[1693847685102,1.14208204,19.529,19.518,1.598]
[1693847685296,7.989,19.526,19.518,1.598]
[1693847685604,152.73558204,19.529,19.518,6.762]
[1693847685605,7.988,19.527,19.518,6.762]
[1693847686204,7.988,19.527,19.518,1.598]
[1693847686399,7.988,19.527,19.517,21.598]
[1693847686603,7.988,19.527,19.517,1.598]
[1693847688404,7.988,19.527,19.513,5.165]
[1693847688605,1.61463791,19.526,19.516,1.598]
[1693847688814,9.60363791,19.526,19.516,1.598]
[1693847689009,95.2665,19.529,19.516,1.598]
[1693847689218,9.1014418,19.528,19.516,1.598]
[1693847689414,7.988,19.528,19.516,1.598]
[1693847690101,7.988,19.528,19.515,1.598]
[1693847690305,1.61185821,19.527,19.513,1.598]
[1693847690604,33.808,19.522,19.511,1.599]
[1693847690803,1.61185821,19.521,19.511,6.765]
[1693847691016,7.991,19.522,19.511,6.765]
[1693847692805,7.991,19.522,19.511,1.599]
[1693847694105,7.992,19.52,19.511,1.599]
[1693847694305,91.9433,19.521,19.511,1.599]
[1693847694306,99.9343,19.521,19.511,1.599]
[1693847697022,99.9343,19.521,19.51,1.599]
[1693847697223,99.9343,19.521,19.509,1.599]
[1693847698510,99.4343,19.521,19.509,1.599]
[1693847698824,91.4433,19.521,19.509,12.875]
[1693847699013,91.4433,19.521,19.509,38.63281734]
[1693847699214,91.4433,19.521,19.513,18.037]
[1693847699825,7.991,19.522,19.513,18.037]
[1693847700225,7.991,19.522,19.513,6.763]
[1693847700528,7.991,19.522,19.51,1.599]
[1693847700529,64.337,19.522,19.51,1.599]
[1693847701329,64.337,19.522,19.509,1.599]
[1693847701915,7.991,19.522,19.509,1.599]
[1693847702322,7.99,19.523,19.509,1.599]
[1693847702633,7.991,19.522,19.509,1.599]
[1693847703117,7.991,19.522,19.507,20.0]
[1693847703423,56.26,19.52,19.505,1.599]
[1693847703629,33.818,19.516,19.505,1.599]
[1693847704227,33.818,19.516,19.5,20.65644233]
[1693847704525,1.49165807,19.515,19.503,1.599]
[1693847704731,7.993,19.517,19.503,27.35681734]
[1693847704922,7.993,19.517,19.504,25.75781734]
[1693847705118,7.993,19.517,19.507,1.599]
[1693847707332,7.993,19.517,19.506,1.599]
[1693847707814,7.993,19.517,19.505,1.599]
[1693847708718,7.993,19.517,19.499,1.6]
[1693847709018,7.993,19.517,19.493,117.18451734]
[1693847709019,1.50409691,19.516,19.493,117.18451734]
[1693847709231,33.83,19.51,19.5,1.599]
[1693847709429,7.996,19.51,19.5,1.599]
[1693847709628,7.994,19.514,19.5,1.599]
[1693847709934,7.994,19.514,19.501,25.75781734]
[1693847710136,7.994,19.514,19.504,1.599]
[1693847710935,107.6385,19.515,19.504,1.599]
[1693847711243,99.6455,19.515,19.504,53.11463434]
[1693847711431,7.991,19.521,19.505,20.0]
[1693847711624,1.09848237,19.52,19.509,18.041]
[1693847711822,56.339,19.525,19.509,18.041]
[1693847711823,1.62291397,19.524,19.509,18.041]
[1693847712122,7.991,19.522,19.509,18.041]
[1693847713421,7.991,19.522,19.509,1.599]
[1693847713622,2.02761815,19.521,19.505,1.599]
[1693847713822,33.818,19.516,19.505,1.599]
[1693847714436,1.04298926,19.515,19.505,1.599]
[1693847714641,9.03598926,19.515,19.505,1.599]
[1693847714940,1.06894229,19.518,19.505,1.599]
[1693847715126,7.993,19.516,19.505,1.599]
[1693847715921,7.993,19.517,19.505,1.599]
[1693847716126,7.993,19.517,19.505,22.098982]
[1693847716337,7.993,19.517,19.506,20.0]
[1693847716542,7.992,19.518,19.509,6.765]
[1693847717834,7.992,19.518,19.507,1.599]
[1693847718137,7.992,19.518,19.505,1.599]
[1693847718355,92.5977,19.517,19.505,1.599]
[1693847718639,33.822,19.514,19.505,1.599]
[1693847718843,33.822,19.514,19.504,1.599]
[1693847721839,33.822,19.514,19.503,1.599]
[1693847722044,7.994,19.514,19.503,6.767]
[1693847722239,7.993,19.515,19.503,18.047]
[1693847722747,7.993,19.516,19.504,20.0]
[1693847723045,7.993,19.516,19.507,6.766]
[1693847723345,7.993,19.517,19.507,6.766]
[1693847726432,25.82,19.52,19.507,6.766]
[1693847726433,7.991,19.52,19.507,6.766]
[1693847726646,7.991,19.522,19.507,52.92581734]
[1693847726947,56.309,19.535,19.51,56.26]
[1693847727247,56.309,19.535,19.517,38.424]
[1693847727248,7.987,19.532,19.517,38.424]
[1693847727548,10.13560706,19.531,19.517,38.424]
[1693847727745,7.987,19.531,19.517,38.424]
[1693847727943,1.12785768,19.53,19.517,38.424]
[1693847728150,7.988,19.529,19.517,38.424]
[1693847728344,7.987,19.53,19.517,38.424]
[1693847728660,2.56362219,19.533,19.517,38.424]
[1693847728948,2.56362219,19.532,19.522,6.761]
[1693847729153,10.55062219,19.532,19.522,6.761]
[1693847729455,10.55062219,19.532,19.522,1.598]
[1693847729659,66.86762219,19.532,19.522,1.598]
[1693847730541,2.56362219,19.532,19.516,20.48719]
[1693847730753,64.304,19.532,19.522,1.598]
[1693847731059,2.56362219,19.531,19.522,1.598]
[1693847731248,7.988,19.529,19.522,1.598]
[1693847731444,7.988,19.529,19.516,20.48719]
[1693847731653,7.988,19.529,19.519,1.598]
[1693847737650,7.988,19.529,19.518,5.164]
[1693847737651,7.988,19.529,19.518,1.598]
[1693847737838,1.1217278,19.528,19.511,11.275]
[1693847738045,7.99,19.523,19.515,1.598]
[1693847740545,7.99,19.523,19.514,1.598]
[1693847743760,7.99,19.523,19.513,1.598]
[1693847744552,7.99,19.523,19.508,30.92481734]
[1693847744864,1.35420356,19.522,19.511,1.599]
[1693847745064,1.35420356,19.522,19.508,5.167]
[1693847745065,7.992,19.519,19.51,1.599]
[1693847745761,7.992,19.519,19.509,1.599]
[1693847746755,64.347,19.519,19.505,56.34]
[1693847746960,1.90263282,19.518,19.505,56.34]
[1693847747267,33.821,19.515,19.505,56.34]
[1693847747650,33.821,19.515,19.505,57.939]
[1693847747956,33.821,19.515,19.505,56.34]
[1693847748156,33.821,19.515,19.505,57.939]
[1693847748464,33.821,19.515,19.505,56.34]
[1693847749467,33.821,19.515,19.503,1.599]
[1693847749963,33.821,19.515,19.498,1.6]
[1693847750461,90.8352,19.514,19.498,1.6]
[1693847750670,33.829,19.51,19.498,1.6]
[1693847751173,7.996,19.51,19.498,1.6]
[1693847755168,7.996,19.51,19.49,67.547]
[1693847755474,7.996,19.51,19.493,1.6]
[1693847755475,1.20143225,19.509,19.493,1.6]
[1693847755676,7.998,19.505,19.493,1.6]
[1693847756357,33.844,19.501,19.489,20.514094]
[1693847756557,33.844,19.501,19.491,1.6]
[1693847756866,7.999,19.501,19.491,1.6]
[1693847760860,7.999,19.501,19.49,1.6]
[1693847761674,98.2812,19.504,19.49,1.6]
[1693847761880,98.2812,19.504,19.49,83.61781734]
[1693847762567,7.999,19.503,19.49,83.61781734]
[1693847764072,7.997,19.507,19.491,25.75781734]
[1693847764275,7.997,19.507,19.496,6.77]
[1693847764473,7.997,19.507,19.5,1.6]
[1693847764675,7.997,19.507,19.497,20.0]
[1693847765565,7.997,19.507,19.498,1.6]
[1693847766571,7.996,19.51,19.498,1.6]
[1693847769079,96.1435,19.514,19.498,1.6]
[1693847769392,1.42429219,19.513,19.498,27.35781734]
[1693847769886,1.42429219,19.514,19.503,18.047]
[1693847770268,7.994,19.513,19.503,1.599]
[1693847770667,1.11817597,19.512,19.503,1.599]
[1693847771180,7.996,19.51,19.503,1.599]
[1693847771878,7.996,19.51,19.498,5.169]
[1693847772089,7.996,19.51,19.5,1.599]
[1693847773282,7.996,19.51,19.499,1.6]
[1693847773995,93.3472,19.509,19.499,1.6]
[1693847774283,7.997,19.506,19.499,1.6]
[1693847779697,56.377,19.512,19.499,1.6]
[1693847779898,7.994,19.513,19.499,22.011]
[1693847780274,7.994,19.513,19.499,1.6]
[1693847780695,90.987,19.515,19.5,56.26]
[1693847780896,90.987,19.515,19.504,38.451]
[1693847781196,25.814,19.524,19.504,38.451]
[1693847781406,98.2909,19.519,19.505,20.0]
[1693847781691,7.99,19.525,19.509,18.041]
[1693847781990,1.32447752,19.524,19.509,18.041]
[1693847782299,7.99,19.523,19.509,18.041]
[1693847782786,7.99,19.524,19.509,18.041]
[1693847783094,1.85946753,19.523,19.509,18.041]
[1693847783394,1.89294551,19.527,19.51,112.52]
[1693847783603,1.89294551,19.527,19.515,18.036]
[1693847783895,56.306,19.536,19.516,20.0]
[1693847784098,7.988,19.529,19.52,1.598]
[1693847784298,25.803,19.533,19.52,1.598]
[1693847784482,1.21548884,19.532,19.52,1.598]
[1693847784884,33.792,19.531,19.516,20.0]
[1693847785096,1.21548884,19.53,19.516,20.0]
[1693847785290,7.989,19.526,19.516,21.598]
[1693847786294,7.987,19.531,19.516,21.598]
[1693847786598,7.987,19.53,19.516,21.598]
[1693847787700,33.793,19.53,19.516,21.598]
[1693847792306,24.27036153,19.529,19.51,40.22529441]
[1693847792520,24.27036153,19.529,19.506,1.599]
[1693847792521,192.076,19.524,19.506,1.599]
[1693847792810,7.992,19.519,19.507,1.599]
[1693847793007,0.97870606,19.526,19.508,25.75781734]
[1693847793207,0.97870606,19.526,19.51,56.26]
[1693847793405,7.988,19.53,19.515,18.036]
[1693847793911,7.988,19.53,19.516,20.0]
[1693847794098,7.988,19.53,19.52,6.761]
[1693847796100,7.987,19.531,19.52,6.761]
[1693847797315,7.987,19.531,19.52,4.261]
[1693847797510,7.987,19.531,19.52,1.598]
[1693847804205,7.987,19.531,19.518,1.598]
[1693847804408,7.987,19.531,19.5,135.0]
[1693847804409,54.80626845,19.53,19.512,1.598]
[1693847804615,54.80626845,19.53,19.509,5.166]
[1693847804616,90.141,19.525,19.511,1.599]
[1693847804819,90.2853,19.524,19.511,1.599]
[1693847805020,33.809,19.521,19.511,1.599]
[1693847805507,33.309,19.521,19.511,1.599]
[1693847806001,7.491,19.521,19.511,1.599]
[1693847806419,6.991,19.521,19.511,1.599]
[1693847808217,90.2853,19.524,19.511,1.599]
[1693847808419,7.987,19.53,19.511,6.765]
[1693847808622,100.2079,19.531,19.512,20.0]
[1693847808818,100.2079,19.531,19.517,18.033]
[1693847810820,92.2209,19.531,19.517,18.033]
[1693847811825,25.799,19.536,19.517,18.033]
[1693847812029,98.98131716,19.535,19.517,18.033]
[1693847812221,7.986,19.532,19.517,18.033]
[1693847813127,97.7213,19.536,19.52,33.75]
[1693847813324,97.7213,19.536,19.524,6.759]
[1693847814020,7.986,19.535,19.524,1.597]
[1693847814222,1.21073948,19.534,19.524,1.597]
[1693847814427,7.986,19.533,19.524,1.597]
[1693847814820,7.986,19.533,19.524,2.397]
[1693847816133,25.8,19.535,19.524,2.397]
[1693847816326,7.986,19.533,19.524,2.397]
[1693847816634,97.7213,19.536,19.524,2.397]
[1693847817132,7.985,19.535,19.524,2.397]
[1693847818616,7.985,19.535,19.52,16.905]
[1693847818833,7.985,19.535,19.524,2.397]
[1693847819936,7.985,19.535,19.524,57.397]
[1693847821128,7.983,19.54,19.524,57.397]
[1693847821333,91.0918,19.542,19.53,27.033]
[1693847821528,99.0738,19.542,19.534,2.395]
[1693847821731,99.0738,19.542,19.53,24.637]
[1693847821929,99.0738,19.542,19.532,2.395]
[1693847822129,7.982,19.542,19.532,2.395]
[1693847822835,1.01013999,19.541,19.531,57.396]
[1693847823327,1.35871614,19.544,19.531,57.396]
[1693847823636,7.982,19.543,19.531,57.396]
[1693847824929,7.482,19.543,19.531,57.396]
[1693847828046,7.982,19.544,19.531,57.396]
[1693847828428,7.981,19.545,19.531,57.396]
[1693847828734,7.981,19.546,19.531,57.396]
[1693847828938,2.25649414,19.552,19.531,57.396]
[1693847829128,10.23449414,19.552,19.538,27.023]
[1693847829325,7.978,19.552,19.538,27.023]
[1693847829936,7.978,19.552,19.535,2.395]
[1693847829937,56.21,19.55,19.535,2.395]
[1693847830130,90.043,19.546,19.535,2.395]
[1693847830334,7.981,19.546,19.535,19.287]
[1693847830528,112.477,19.55,19.535,19.287]
[1693847830529,138.257,19.55,19.535,19.287]
[1693847830730,7.98,19.547,19.535,19.287]
[1693847830934,7.98,19.547,19.535,49.851]
[1693847831135,7.98,19.548,19.535,49.851]
[1693847831929,7.98,19.548,19.536,20.0]
[1693847832131,7.98,19.548,19.538,2.395]
[1693847832732,7.48,19.548,19.538,2.395]
[1693847836136,7.98,19.548,19.538,2.395]
[1693847837726,7.98,19.548,19.531,16.895]
[1693847837930,7.98,19.548,19.534,2.395]
[1693847838137,1.44218114,19.547,19.534,2.395]
[1693847838339,33.77,19.544,19.534,2.395]
[1693847839447,33.77,19.544,19.533,2.395]
[1693847839641,1.14151746,19.543,19.524,16.901]
[1693847839961,1.14151746,19.543,19.51,56.21]
[1693847839962,90.095,19.535,19.522,40.573183]
[1693847840135,90.095,19.535,19.522,2.397]
[1693847840136,2.61175527,19.534,19.522,2.397]
[1693847840341,7.987,19.531,19.522,2.397]
[1693847841139,7.987,19.531,19.519,20.484191]
[1693847841140,7.987,19.531,19.512,25.75781734]
[1693847841339,77.63144014,19.53,19.514,2.398]
[1693847841655,33.801,19.526,19.514,2.398]
[1693847842058,93.7005,19.525,19.514,2.398]
[1693847842257,7.991,19.522,19.514,2.398]
[1693847842756,7.991,19.522,19.513,2.398]
[1693847842950,7.991,19.522,19.511,2.398]
[1693847843147,7.991,19.522,19.504,84.08930453]
[1693847843148,7.991,19.522,19.509,2.398]
[1693847844537,33.82,19.515,19.5,15.6239754]
[1693847844960,33.82,19.515,19.5,99.7132794]
[1693847845151,7.995,19.51,19.501,2.399]
[1693847845956,99.2378,19.514,19.501,2.399]
[1693847846158,56.36,19.518,19.501,2.399]
[1693847846355,7.994,19.513,19.501,28.15681734]
[1693847846862,7.994,19.513,19.502,55.0]
[1693847847063,7.994,19.513,19.505,2.399]
[1693847847255,7.994,19.515,19.505,2.399]
[1693847847453,7.994,19.514,19.505,57.399]
[1693847847859,7.993,19.515,19.505,57.399]
[1693847848056,25.823,19.518,19.505,57.399]
[1693847848361,7.993,19.516,19.505,57.399]
[1693847852843,56.341,19.524,19.506,20.0]
[1693847853056,7.991,19.521,19.513,2.398]
[1693847853859,7.991,19.521,19.505,55.0]
[1693847853860,33.78,19.52,19.505,55.0]
[1693847854064,33.818,19.516,19.507,2.399]
[1693847854287,33.818,19.516,19.5,16.922]
[1693847854563,33.818,19.516,19.507,2.399]
[1693847855962,33.818,19.516,19.502,20.502246]
[1693847856152,33.818,19.516,19.506,2.399]
[1693847856860,135.785,19.516,19.502,20.502246]
[1693847857159,7.995,19.51,19.503,2.399]
[1693847860350,92.6181,19.515,19.503,2.399]
[1693847860557,7.993,19.515,19.503,2.399]
[1693847861058,33.819,19.515,19.503,2.399]
[1693847864163,7.993,19.515,19.503,2.399]
[1693847864465,25.821,19.519,19.503,33.009]
[1693847864765,7.993,19.517,19.503,33.009]
[1693847865461,7.993,19.517,19.503,2.399]
[1693847869869,135.12,19.53,19.504,25.75781734]
[1693847869870,56.335,19.526,19.504,25.75781734]
[1693847870165,7.991,19.521,19.511,10.147]
[1693847870557,7.991,19.521,19.509,2.398]
[1693847870872,35.41458992,19.52,19.504,2.399]
[1693847871067,90.185,19.516,19.504,2.399]
[1693847872556,33.78,19.51,19.495,16.927]
[1693847872767,7.997,19.506,19.499,2.4]
[1693847872969,25.834,19.509,19.499,2.4]
[1693847872970,7.997,19.507,19.499,2.4]
[1693847874173,7.996,19.509,19.499,2.4]
[1693847877861,90.3273,19.51,19.499,2.4]
[1693847879071,56.36,19.518,19.499,2.4]
[1693847879574,7.995,19.511,19.499,2.4]
[1693847881076,93.1625,19.517,19.499,2.4]
[1693847881270,7.995,19.512,19.499,28.15781734]
[1693847884871,7.994,19.513,19.499,28.15781734]
[1693847885875,7.994,19.513,19.5,0.64031648]
[1693847886078,7.994,19.513,19.503,2.399]
[1693847887870,7.994,19.514,19.503,2.399]
[1693847888380,33.821,19.514,19.503,2.399]
[1693847889683,7.994,19.515,19.503,2.399]
[1693847898987,33.82,19.515,19.503,2.399]
[1693847901379,7.994,19.515,19.503,2.399]
[1693847904780,64.36,19.515,19.5,7.753]
[1693847904981,64.36,19.515,19.503,2.399]
[1693847905287,91.9067,19.519,19.503,2.399]
[1693847905490,7.993,19.516,19.503,28.15681734]
[1693847906283,64.357,19.516,19.503,28.15681734]
[1693847907379,64.357,19.516,19.503,2.399]
[1693847909484,7.993,19.516,19.503,2.399]
[1693847911491,148.2627,19.519,19.503,2.399]
[1693847911492,91.9067,19.519,19.503,2.399]
[1693847911691,99.8987,19.519,19.504,25.75781734]
[1693847911997,99.8987,19.519,19.508,2.398]
[1693847919197,99.8987,19.519,19.505,2.399]
[1693847919810,33.821,19.515,19.505,2.399]
[1693847921403,33.821,19.515,19.499,33.51181734]
[1693847921702,33.821,19.515,19.498,104.95871308]
[1693847921897,33.821,19.515,19.503,2.399]
[1693847924698,33.821,19.515,19.502,2.399]
[1693847925205,33.821,19.515,19.493,130.15949432]
[1693847925206,33.835,19.506,19.496,2.4]
[1693847925389,33.835,19.506,19.494,2.4]
[1693847925587,33.835,19.506,19.489,16.932]
[1693847925786,33.835,19.506,19.494,2.4]
[1693847926005,92.7398,19.505,19.492,2.4]
[1693847926204,33.843,19.502,19.491,2.401]
[1693847926998,33.843,19.502,19.489,2.401]
[1693847927203,90.271,19.497,19.483,32.19699999]
[1693847927403,90.271,19.497,19.483,129.86808111]
[1693847927704,90.271,19.497,19.483,74.119876]
[1693847928505,90.271,19.497,19.483,7.76]
[1693847929207,90.271,19.497,19.485,2.401]
[1693847930404,90.271,19.497,19.485,57.401]
[1693847930610,91.6688,19.496,19.485,57.401]
[1693847930788,8.002,19.493,19.485,57.401]
[1693847933813,91.6688,19.496,19.485,104.975]
[1693847933999,91.6688,19.496,19.486,0.58286163]
[1693847934312,91.6688,19.496,19.489,27.091]